bitfinex-derivatives/quotes_ETHF0:USTF0_20250902
["timestamp","ask_amount","ask_price","bid_price","bid_amount"]
[1756774327659,0.3061,4305.2,4304.6,0.5442]
[1756774327865,0.3061,4305.3,4304.6,0.5442]
[1756774331366,3.2078,4305.4,4304.2,40.8]
[1756774331367,3.2078,4304.9,4304.2,0.39]
[1756774331667,3.5151,4304.9,4304.2,0.39]
[1756774331868,3.7242,4304.9,4304.8,0.7029]
[1756774332767,3.9228,4304.9,4304.8,0.7029]
[1756774333461,0.3073,4304.8,4304.4,0.3129]
[1756774333661,0.715,4304.5,4304.4,0.4389]
[1756774333869,0.715,4304.5,4304.2,40.8]
[1756774334067,0.4077,4304.2,4304.1,0.5457736]
[1756774334268,3.4169,4304.9,4304.8,0.39]
[1756774334457,3.9228,4304.9,4304.3,0.3129]
[1756774334667,3.9228,4304.9,4304.3,41.1129]
[1756774334870,0.3073,4304.8,4304.3,41.1129]
[1756774335167,0.2091,4304.4,4304.3,41.1129]
[1756774335561,0.5164,4304.8,4304.7,0.7029]
[1756774336066,0.715,4304.8,4304.7,0.7029]
[1756774341965,0.4077,4304.3,4304.2,0.5108]
[1756774342175,0.4077,4304.3,4304.2,0.4379]
[1756774342176,0.715,4304.3,4304.2,0.4379]
[1756774344474,0.715,4304.3,4304.2,0.7508]
[1756774344872,0.715,4304.3,4304.2,0.4379]
[1756774345772,0.715,4304.3,4304.2,0.7508]
[1756774346578,0.715,4304.3,4304.1,0.1068736]
[1756774346876,3.9228,4304.3,4304.1,0.1068736]
[1756774348576,0.6477,4304.2,4304.1,0.1068736]
[1756774348775,0.955,4304.2,4304.1,0.1068736]
[1756774350282,0.715,4304.2,4304.1,0.1068736]
[1756774350484,0.955,4304.2,4304.1,0.1068736]
[1756774351784,0.0083,4304.5,4304.1,0.8097736]
[1756774351986,0.7233,4304.5,4304.4,0.7029]
[1756774352181,0.9633,4304.5,4304.4,0.7029]
[1756774352487,0.9633,4304.5,4304.4,0.1979]
[1756774353080,0.7233,4304.5,4304.4,0.5108]
[1756774353284,0.7233,4304.5,4304.4,0.7029]
[1756774354488,0.7233,4304.5,4304.4,0.1979]
[1756774355182,0.7233,4304.5,4304.4,0.7029]
[1756774355388,0.0083,4304.5,4304.4,4.7029]
[1756774357075,0.0083,4304.5,4304.4,8.83522]
[1756774357681,0.0083,4304.5,4304.4,49.63522]
[1756774358590,0.0083,4304.5,4304.4,49.87422]
[1756774358784,0.0083,4304.5,4304.4,45.4029]
[1756774359086,0.0083,4304.5,4304.4,45.6419]
[1756774359287,0.0083,4304.5,4304.4,49.6419]
[1756774360289,3.2078,4305.5,4305.4,0.39]
[1756774360485,3.2078,4305.5,4305.4,0.7029]
[1756774360787,3.6155,4306.0,4305.9,0.1979]
[1756774361287,0.2919,4305.9,4305.6,0.3129]
[1756774361591,3.2078,4306.0,4305.6,0.5047]
[1756774361592,0.6952,4305.7,4305.6,0.5047]
[1756774362592,0.4033,4305.0,4304.9,0.9265]
[1756774362789,0.6952,4305.0,4304.9,0.9265]
[1756774362991,3.2078,4305.5,4305.0,0.2951]
[1756774363391,3.903,4305.5,4305.4,0.3924]
[1756774363591,3.903,4305.5,4305.4,0.1918]
[1756774363791,3.903,4305.5,4305.4,0.6875]
[1756774364595,0.2919,4305.4,4304.8,0.239]
[1756774364889,0.6952,4305.4,4305.3,0.6875]
[1756774366499,3.2078,4306.0,4305.9,0.6875]
[1756774366694,3.2078,4306.6,4306.0,0.2951]
[1756774366994,3.2078,4306.6,4306.5,0.6875]
[1756774367391,3.6111,4306.6,4306.0,41.0951]
[1756774367598,0.5031,4306.2,4306.1,0.9265]
[1756774367892,3.2078,4306.6,4306.5,0.3924]
[1756774368096,3.6918,4306.6,4306.5,0.6875]
[1756774371402,3.903,4306.6,4306.5,0.6875]
[1756774371591,3.3999,4306.6,4306.5,0.6875]
[1756774372000,3.3999,4306.6,4306.5,0.9265]
[1756774372196,3.903,4306.6,4306.5,0.4308]
[1756774372405,0.1149,4306.5,4306.0,40.8]
[1756774372701,0.1149,4306.5,4305.8,3.4468]
[1756774372702,0.6952,4306.1,4305.8,3.4468]
[1756774372897,0.6952,4306.0,4305.9,0.1918]
[1756774373301,0.6952,4306.0,4305.9,40.9918]
[1756774374106,0.6952,4306.0,4305.9,0.1918]
[1756774374305,0.2919,4305.9,4305.8,3.4468]
[1756774374601,0.2919,4306.5,4305.8,0.239]
[1756774374800,0.6952,4306.5,4306.4,0.6875]
[1756774375102,0.6952,4306.5,4306.4,0.9265]
[1756774376299,3.2078,4306.6,4306.5,0.2951]
[1756774376603,3.2078,4306.6,4306.5,0.6875]
[1756774376804,3.2078,4307.1,4306.5,0.6875]
[1756774376999,3.3999,4307.1,4307.0,0.3924]
[1756774377199,3.903,4307.1,4307.0,0.6875]
[1756774377703,3.903,4307.1,4307.0,0.1918]
[1756774380594,3.903,4307.1,4306.8,0.239]
[1756774380803,0.6952,4306.9,4306.8,0.239]
[1756774383607,0.6952,4306.9,4306.0,4.1951]
[1756774383807,0.4033,4306.2,4306.1,0.6314]
[1756774384011,0.6952,4306.2,4306.1,0.9265]
[1756774384409,0.2919,4306.1,4305.9,40.8]
[1756774384598,0.6952,4306.0,4305.9,0.239]
[1756774385104,0.6952,4306.0,4305.9,40.8]
[1756774385506,0.4033,4306.0,4305.4,0.5341]
[1756774385702,0.2919,4305.4,4305.0,0.2951]
[1756774385905,0.6952,4304.9,4304.8,3.3996]
[1756774386106,0.6952,4304.9,4304.8,3.2078]
[1756774387205,0.2919,4305.4,4304.9,0.2951]
[1756774387405,0.1921,4305.0,4304.9,0.3924]
[1756774387708,0.1921,4305.0,4304.9,0.6875]
[1756774387913,0.6952,4305.0,4304.9,0.6875]
[1756774388114,0.6952,4305.0,4304.7,0.239]
[1756774388610,0.4033,4304.5,4304.4,0.1918]
[1756774388819,0.6952,4304.5,4304.4,0.1918]
[1756774389112,0.6952,4304.5,4304.3,0.239]
[1756774389113,0.2919,4304.4,4304.3,0.239]
[1756774389310,0.6952,4304.4,4304.3,0.4308]
[1756774389510,0.6952,4304.4,4304.3,0.7259]
[1756774389714,0.6952,4304.4,4304.3,0.9265]
[1756774390705,0.1921,4304.4,4304.3,0.9265]
[1756774391011,3.2078,4305.0,4304.9,0.6875]
[1756774391212,3.2078,4305.0,4304.9,0.9265]
[1756774391411,3.3999,4305.0,4304.9,0.9265]
[1756774392705,3.9,4305.0,4304.9,0.4308]
[1756774392905,3.9,4305.0,4304.9,0.239]
[1756774393108,3.9,4305.0,4304.5,0.2985]
[1756774393109,3.9,4305.0,4304.6,0.239]
[1756774393413,4.0222,4305.0,4304.6,0.239]
[1756774394114,4.0222,4305.0,4304.2,40.8]
[1756774394313,0.4976,4304.3,4304.2,40.8]
[1756774394505,0.4976,4304.3,4304.2,41.3375]
[1756774395014,0.7045,4304.3,4304.2,0.9362]
[1756774397416,0.2932,4304.9,4304.3,0.2985]
[1756774397609,0.7045,4304.9,4304.8,0.5011]
[1756774398010,0.7045,4304.9,4304.8,0.2026]
[1756774398211,0.7045,4304.9,4304.8,0.6972]
[1756774398419,0.4976,4304.9,4304.8,0.9362]
[1756774398620,0.7045,4304.9,4304.8,0.9362]
[1756774406620,0.2044,4304.9,4304.8,0.9362]
[1756774406821,3.2078,4305.7,4305.0,0.2985]
[1756774407018,3.2078,4305.7,4305.6,1.36772281]
[1756774407218,3.2078,4305.7,4305.6,1.90522281]
[1756774407420,3.4122,4305.7,4305.6,0.9362]
[1756774407621,3.7054,4305.7,4305.6,0.9362]
[1756774407823,3.9123,4305.7,4305.6,0.9362]
[1756774408124,3.6191,4305.7,4305.3,0.2985]
[1756774408329,0.7045,4305.4,4305.3,0.4416]
[1756774408523,0.7045,4305.4,4305.3,0.7401]
[1756774408825,0.7045,4305.4,4305.3,0.9362]
[1756774410828,0.2932,4305.3,4305.2,40.8]
[1756774411029,0.2932,4305.3,4305.2,41.039]
[1756774411230,0.7045,4305.3,4305.2,0.239]
[1756774411430,0.7045,4305.3,4305.1,0.239]
[1756774411835,0.4113,4305.3,4305.2,0.6972]
[1756774412535,0.7045,4305.3,4305.2,0.6972]
[1756774413937,0.4976,4305.6,4305.5,0.6972]
[1756774414137,3.2078,4305.7,4305.6,0.6972]
[1756774416134,0.2932,4306.2,4305.7,0.2985]
[1756774416436,0.7045,4305.9,4305.8,0.9362]
[1756774416637,0.7045,4305.9,4305.8,0.4416]
[1756774416935,0.7045,4305.9,4305.1,0.4416]
[1756774416936,0.4113,4305.2,4305.1,0.4416]
[1756774417140,0.7045,4305.2,4305.1,0.7401]
[1756774417336,0.7045,4305.2,4305.1,0.4416]
[1756774417539,0.4113,4305.2,4304.8,44.0078]
[1756774417842,0.7045,4305.0,4304.9,0.4416]
[1756774418038,0.7045,4305.0,4304.9,0.6377]
[1756774418239,0.7045,4305.0,4304.9,0.9362]
[1756774419132,0.7045,4305.0,4304.9,0.6972]
[1756774419333,0.4113,4304.7,4304.6,0.239]
[1756774419533,0.2932,4304.6,4304.0,0.2985]
[1756774419740,0.7045,4304.2,4304.1,0.3458736]
[1756774419932,0.7045,4304.2,4304.1,0.5484736]
[1756774420139,0.7045,4304.2,4304.1,1.0430736]
[1756774420344,0.7045,4304.2,4304.1,0.3458736]
[1756774420739,0.7045,4304.2,4304.1,0.1068736]
[1756774423237,0.9435,4304.2,4304.1,0.1068736]
[1756774425949,0.9435,4304.2,4304.1,0.3164736]
[1756774426546,0.9435,4304.2,4304.1,0.1068736]
[1756774426848,0.7045,4304.2,4304.1,0.1068736]
[1756774427058,0.9435,4304.2,4304.1,0.1068736]
[1756774428550,0.7045,4304.2,4304.1,0.8205736]
[1756774428948,0.7045,4304.2,4304.1,0.5127736]
[1756774429247,0.7045,4304.2,4304.1,0.1068736]
[1756774430046,0.7045,4304.2,4304.1,0.3164736]
[1756774430349,0.7045,4304.2,4304.1,0.1068736]
[1756774431149,0.7278,4304.2,4304.1,0.8205736]
[1756774431450,0.7278,4304.2,4304.1,0.5127736]
[1756774431646,0.7278,4304.2,4304.1,0.3164736]
[1756774431848,0.7278,4304.2,4304.1,0.1068736]
[1756774432748,0.7278,4304.2,4304.1,0.8205736]
[1756774433153,0.7278,4304.2,4304.1,0.1068736]
[1756774440151,0.3165,4302.9,4302.4,0.3078]
[1756774440353,0.3165,4302.4,4302.0,0.3078]
[1756774440654,0.4189,4302.1,4301.7,0.3078]
[1756774440857,0.7354,4301.8,4301.7,0.5174]
[1756774441555,0.7354,4301.8,4301.7,0.7137]
[1756774442360,0.4189,4301.8,4301.7,0.7137]
[1756774443056,0.7354,4301.8,4301.7,0.7137]
[1756774443660,0.4189,4301.8,4301.7,0.7137]
[1756774444954,0.7354,4301.8,4301.7,0.7137]
[1756774445357,0.2104,4301.8,4301.7,0.7137]
[1756774446063,0.7354,4301.8,4301.7,0.7137]
[1756774446764,0.2104,4301.8,4301.7,0.7137]
[1756774447259,0.4494,4302.3,4302.2,0.2096]
[1756774447458,0.9744,4302.3,4302.2,0.5174]
[1756774448860,3.2078,4302.5,4302.3,0.3078]
[1756774449065,3.2078,4302.5,4302.4,0.7137]
[1756774449752,3.9432,4302.5,4302.4,0.7137]
[1756774451259,3.9432,4302.5,4302.1,0.3107]
[1756774451462,3.9432,4302.5,4301.9,0.239]
[1756774451463,3.6267,4302.5,4301.9,0.239]
[1756774451662,0.7113,4302.4,4302.3,0.2053]
[1756774452064,0.7113,4302.4,4302.3,0.516]
[1756774452561,0.4014,4302.4,4302.3,0.7081]
[1756774453166,0.7113,4302.4,4302.3,0.7081]
[1756774459570,0.4014,4302.4,4301.9,40.8]
[1756774459867,0.7113,4301.8,4301.7,0.755]
[1756774461669,0.3099,4301.7,4301.4,0.239]
[1756774461873,0.4014,4301.5,4301.4,0.755]
[1756774462073,0.7113,4301.5,4301.4,0.755]
[1756774462263,0.7113,4301.5,4301.4,0.516]
[1756774462469,0.7113,4301.5,4301.4,0.755]
[1756774462669,0.7113,4301.5,4301.4,0.516]
[1756774466574,0.4014,4301.2,4301.1,0.7081]
[1756774467074,0.3099,4301.1,4300.4,0.3107]
[1756774467276,0.3099,4300.4,4300.2,0.00517759]
[1756774467469,0.7113,4300.3,4300.2,0.00517759]
[1756774468472,0.7113,4300.3,4300.2,0.71327759]
[1756774468777,0.4014,4300.3,4300.2,0.71327759]
[1756774468969,0.7113,4300.3,4300.2,0.71327759]
[1756774469170,0.4014,4300.3,4300.2,0.71327759]
[1756774469477,0.2009,4300.4,4300.3,0.3974]
[1756774469678,0.2009,4300.4,4300.3,0.7081]
[1756774470171,0.7113,4300.4,4300.3,0.7081]
[1756774470568,0.4014,4300.4,4300.3,0.7081]
[1756774471069,3.2078,4301.0,4300.3,0.7081]
[1756774471272,3.6092,4301.0,4300.9,0.2053]
[1756774471472,3.9191,4301.0,4300.9,0.516]
[1756774471672,3.9191,4301.0,4300.3,0.3107]
[1756774472172,3.7186,4301.0,4300.9,0.7081]
[1756774472372,3.2078,4301.0,4300.9,0.7081]
[1756774472679,3.4087,4301.0,4300.9,0.7081]
[1756774472870,0.2009,4301.0,4300.9,0.7081]
[1756774473275,3.6477,4301.5,4301.4,0.3974]
[1756774473479,3.8482,4301.5,4301.4,0.7081]
[1756774473676,4.1581,4301.5,4301.4,0.7081]
[1756774474582,4.1581,4301.5,4301.4,0.2053]
[1756774475775,4.1581,4301.5,4301.1,0.3107]
[1756774476075,5.12829047,4301.5,4301.1,0.3107]
[1756774476878,5.12829047,4301.5,4300.9,0.3107]
[1756774477182,4.88929047,4301.5,4300.9,0.3107]
[1756774477480,5.12829047,4301.5,4301.4,0.2053]
[1756774478281,5.12829047,4301.5,4301.4,0.516]
[1756774479478,4.1581,4301.5,4301.4,0.7081]
[1756774479779,3.6092,4301.5,4301.4,0.7081]
[1756774479979,3.9191,4301.5,4301.4,0.7081]
[1756774480781,3.2078,4302.0,4301.4,0.3974]
[1756774481083,3.4087,4302.0,4301.9,0.7081]
[1756774482180,3.2078,4302.5,4301.9,0.7081]
[1756774482379,3.93,4302.5,4302.4,0.7154]
[1756774482877,3.93,4302.5,4302.4,0.5128]
[1756774484385,3.93,4302.5,4302.4,0.1985]
[1756774485186,3.93,4302.5,4302.4,0.5128]
[1756774486088,4.169,4302.5,4302.4,0.5128]
[1756774486274,3.8639,4302.5,4302.0,0.3143]
[1756774486477,0.7222,4302.1,4302.0,0.7154]
[1756774488488,0.2101,4302.1,4302.0,0.7154]
[1756774489682,3.2078,4302.5,4302.0,1.49709047]
[1756774489884,3.93,4302.5,4302.4,0.7154]
[1756774494700,3.93,4302.5,4302.4,0.5128]
[1756774495900,3.93,4302.5,4301.9,0.239]
[1756774496695,3.2078,4302.5,4302.3,0.1985]
[1756774496900,0.7222,4302.4,4302.3,0.5128]
[1756774497598,0.3051,4302.3,4301.7,0.5533]
[1756774497794,0.7222,4302.4,4302.3,0.1985]
[1756774498902,0.7222,4302.4,4302.3,0.7154]
[1756774500397,0.7222,4302.4,4301.7,1.20919047]
[1756774500598,0.4171,4302.4,4302.3,0.7154]
[1756774501003,3.93,4303.0,4302.9,0.7154]
[1756774501398,3.93,4303.0,4302.9,0.5128]
[1756774501895,3.93,4303.0,4302.9,0.7154]
[1756774502102,3.4179,4303.0,4302.9,0.7154]
[1756774503201,3.93,4303.0,4302.9,0.7154]
[1756774503403,0.3051,4302.9,4302.8,0.239]
[1756774503705,0.7222,4302.9,4302.8,0.239]
[1756774504100,0.3051,4302.2,4301.9,0.3143]
[1756774504303,0.7222,4301.7,4301.6,3.2078]
[1756774504705,0.9612,4301.7,4301.6,3.2078]
[1756774506005,0.9612,4301.7,4300.9,40.8]
[1756774506006,0.9612,4301.7,4301.0,0.239]
[1756774506399,0.9612,4301.7,4300.8,0.3143]
[1756774506596,0.7222,4300.5,4300.4,3.9232]
[1756774506800,0.7222,4300.5,4300.4,0.239]
[1756774507009,0.7222,4300.5,4300.1,0.239]
[1756774507909,0.2101,4300.5,4300.4,0.7154]
[1756774508802,0.4171,4300.5,4300.4,0.7154]
[1756774509103,0.3051,4301.0,4300.4,0.4011]
[1756774509302,0.3051,4301.0,4300.2,0.97536806]
[1756774509303,0.2101,4300.7,4300.6,0.7154]
[1756774509498,0.2101,4300.7,4300.6,0.9544]
[1756774509698,0.3051,4301.1,4300.7,0.3143]
[1756774509905,3.93,4301.2,4300.6,0.239]
[1756774510705,0.2101,4300.8,4300.7,0.7154]
[1756774510909,0.7222,4300.8,4300.7,0.7154]
[1756774512007,0.2905,4301.4,4300.8,0.3096]
[1756774512303,0.2104,4301.4,4301.3,0.6988]
[1756774513806,0.4008,4301.4,4301.3,0.6988]
[1756774514013,0.6913,4301.4,4301.3,0.6988]
[1756774515609,0.6913,4301.4,4300.2,0.42370759]
[1756774515610,0.6913,4300.3,4300.2,0.20057759]
[1756774515809,0.6913,4300.3,4300.2,0.51017759]
[1756774516019,0.6913,4300.3,4300.2,0.20057759]
[1756774516211,0.6913,4300.3,4300.2,0.00517759]
[1756774517911,0.9303,4300.3,4300.2,0.00517759]
[1756774519315,0.6398,4300.3,4299.4,0.5486]
[1756774519516,0.4008,4299.5,4299.4,0.9378]
[1756774520112,0.4008,4299.4,4299.0,0.5486]
[1756774520309,0.6913,4299.2,4299.1,0.505]
[1756774520513,0.6913,4299.2,4299.1,0.1954]
[1756774520821,3.4468,4299.9,4299.0,0.5486]
[1756774520822,0.2905,4299.1,4299.0,0.5486]
[1756774521115,0.6913,4299.1,4299.0,0.744]
[1756774521414,0.6913,4299.1,4299.0,0.1954]
[1756774521619,0.6913,4299.1,4299.0,0.505]
[1756774523509,0.2905,4299.0,4298.9,3.2078]
[1756774523713,0.6913,4299.0,4298.9,3.9066]
[1756774524814,0.6913,4299.0,4298.9,0.6988]
[1756774526123,0.4008,4299.0,4298.9,0.6988]
[1756774527622,0.2905,4299.9,4299.0,0.1242]
[1756774527819,3.8991,4299.9,4299.8,0.6988]
[1756774528126,3.8991,4299.9,4299.4,0.239]
[1756774528328,0.4008,4299.6,4299.5,0.505]
[1756774528626,0.6913,4299.6,4299.5,0.505]
[1756774529922,0.6913,4299.6,4299.5,0.6988]
[1756774530422,0.4008,4299.6,4299.5,0.6988]
[1756774530623,3.2078,4299.9,4299.5,0.3096]
[1756774530820,0.6913,4299.6,4299.5,0.505]
[1756774531825,0.6913,4299.6,4299.5,0.6988]
[1756774535223,0.4008,4299.6,4299.5,0.6988]
[1756774535527,3.4182,4299.9,4299.8,0.6988]
[1756774536120,0.4008,4299.3,4299.2,0.505]
[1756774536427,0.4008,4299.0,4298.6,0.3096]
[1756774536628,0.4008,4298.7,4298.6,0.9378]
[1756774536823,3.4983,4299.3,4298.6,1.59839047]
[1756774537029,3.8991,4299.3,4299.2,0.1954]
[1756774538326,0.4008,4299.1,4299.0,0.505]
[1756774538523,0.6913,4299.1,4299.0,0.505]
[1756774539928,0.6913,4299.1,4299.0,0.6988]
[1756774540224,0.2905,4299.0,4298.4,3.7564]
[1756774540524,0.6913,4299.0,4298.9,0.3892]
[1756774540835,0.6913,4299.0,4298.9,0.6988]
[1756774541625,0.2929,4298.9,4298.0,0.2912]
[1756774541825,0.6836,4298.1,4298.0,0.1949]
[1756774542124,0.6836,4298.1,4298.0,0.4861]
[1756774543229,0.6836,4297.8,4297.7,0.4861]
[1756774543630,0.6836,4297.8,4297.7,0.6781]
[1756774544531,0.2929,4297.7,4297.4,3.738]
[1756774544824,0.6836,4297.5,4297.4,3.6939]
[1756774545127,0.6836,4297.5,4297.4,3.8859]
[1756774546322,3.8914,4297.5,4297.0,0.2912]
[1756774546535,0.97019047,4297.4,4297.0,0.2912]
[1756774546728,0.6836,4297.1,4297.0,0.4861]
[1756774547320,0.6836,4297.1,4297.0,0.6781]
[1756774550022,0.3187,4296.5,4296.0,3.2078]
[1756774550222,0.1934,4296.4,4296.3,0.1998]
[1756774550425,3.5985,4296.4,4295.2,3.2078]
[1756774550733,0.6836,4295.9,4295.8,0.0999]
[1756774551619,0.6836,4295.9,4295.8,1.16999047]
[1756774551823,0.2929,4295.9,4295.8,4.37779047]
[1756774552022,0.2929,4296.4,4295.8,4.44019047]
[1756774552223,0.1934,4296.4,4296.3,0.0999]
[1756774552433,0.2929,4296.4,4296.3,0.1998]
[1756774555723,3.3331,4297.5,4296.9,0.1998]
[1756774555936,3.3331,4297.5,4296.8,3.2078]
[1756774555937,0.516,4297.0,4296.8,3.2078]
[1756774556131,0.516,4297.0,4296.5,0.239]
[1756774556331,0.1934,4296.6,4296.5,0.4388]
[1756774556633,0.6836,4296.6,4296.5,41.2388]
[1756774557729,0.4863,4296.6,4296.5,41.2388]
[1756774557928,0.2929,4296.6,4296.5,41.2388]
[1756774559936,0.2929,4296.9,4296.8,0.1998]
[1756774560334,0.2929,4297.4,4296.8,4.44019047]
[1756774560635,0.2929,4297.4,4297.3,1.16999047]
[1756774560829,0.2929,4297.4,4297.3,1.40899047]
[1756774561543,1.09549047,4298.5,4297.3,1.40899047]
[1756774561544,0.2929,4298.4,4297.8,0.2699]
[1756774561837,0.2929,4298.4,4298.3,0.2056]
[1756774561838,0.4863,4298.4,4298.3,0.2056]
[1756774562331,0.6836,4298.4,4298.3,0.2056]
[1756774563533,0.4863,4298.4,4298.3,0.2056]
[1756774563929,0.6836,4298.4,4298.3,0.4446]
[1756774565035,3.5007,4298.6,4298.3,0.4446]
[1756774565230,3.5007,4298.6,4298.5,0.2056]
[1756774565431,3.6941,4298.6,4298.5,0.2056]
[1756774565738,3.8914,4298.6,4298.5,0.2056]
[1756774567736,3.8914,4298.6,4298.5,0.1028]
[1756774568237,3.6941,4298.6,4298.5,0.2056]
[1756774568437,3.8914,4298.6,4298.5,0.2056]
[1756774568936,0.2929,4298.6,4298.5,3.00700259]
[1756774569240,0.4863,4299.2,4299.1,0.1028]
[1756774569441,0.6836,4299.2,4299.1,0.4446]
[1756774569936,0.1253,4299.0,4298.5,0.239]
[1756774570236,0.8089,4298.5,4298.4,0.239]
[1756774571841,0.4863,4298.5,4298.4,0.4434]
[1756774572140,0.8005,4298.5,4298.4,0.4434]
[1756774572335,0.8005,4298.5,4298.0,40.8]
[1756774572336,0.3124,4298.4,4298.0,40.8]
[1756774572538,0.5076,4298.5,4296.5,0.0643]
[1756774572539,0.4032,4297.9,4297.5,0.239]
[1756774572740,0.7156,4297.6,4297.5,0.239]
[1756774575037,0.1154,4298.0,4297.2,3.2078]
[1756774575038,0.7156,4297.4,4297.2,3.2078]
[1756774575237,0.7156,4297.4,4297.3,0.239]
[1756774575744,0.3124,4297.3,4296.7,3.2078]
[1756774575936,0.7156,4296.7,4296.6,0.239]
[1756774576333,0.7156,4296.7,4296.6,41.1412]
[1756774577035,0.7156,4296.7,4296.6,0.3412]
[1756774578743,0.7156,4296.7,4296.6,0.239]
[1756774578942,0.7156,4296.7,4296.6,0.3412]
[1756774580449,0.7156,4296.7,4296.6,0.4434]
[1756774580945,0.7156,4296.7,4296.6,0.3412]
[1756774583543,0.3124,4296.3,4296.2,33.521]
[1756774583743,0.4032,4296.2,4295.4,3.2078]
[1756774584058,0.5168,4295.6,4295.5,41.2434]
[1756774584547,0.3124,4295.6,4295.5,41.3073]
[1756774587146,0.3124,4296.4,4295.5,41.3073]
[1756774587352,0.7156,4296.4,4296.3,0.1022]
[1756774588046,0.3124,4296.9,4296.3,1.24143329]
[1756774588248,0.5168,4296.9,4296.8,0.2044]
[1756774588446,0.7156,4296.9,4296.8,0.4434]
[1756774589144,0.5168,4296.9,4296.8,0.4434]
[1756774589347,0.5168,4296.9,4296.8,0.5073]
[1756774589348,0.3124,4296.9,4296.8,0.5073]
[1756774589546,0.3124,4297.4,4296.8,0.5073]
[1756774589751,0.7156,4297.4,4297.3,0.1022]
[1756774589947,0.7156,4297.4,4297.3,0.3412]
[1756774591354,0.7156,4297.4,4297.3,0.4434]
[1756774591755,0.7156,4297.4,4297.3,0.3412]
[1756774592159,0.7156,4297.4,4297.3,0.239]
[1756774594956,0.3124,4297.3,4297.0,40.8]
[1756774595157,0.7156,4297.2,4297.1,0.239]
[1756774595360,0.7156,4297.2,4297.1,0.3412]
[1756774595661,0.7156,4297.2,4297.1,0.4434]
[1756774595856,0.1154,4297.0,4296.7,3.2078]
[1756774596060,0.4032,4295.8,4295.7,3.2078]
[1756774596269,0.7156,4295.8,4295.7,3.2078]
[1756774598759,0.1154,4296.5,4295.7,3.4761]
[1756774599067,0.2044,4295.9,4295.8,0.4434]
[1756774599262,0.5168,4295.9,4295.8,0.4434]
[1756774601058,0.7156,4295.9,4295.8,0.4434]
[1756774601366,0.3124,4295.9,4295.8,0.4432]
[1756774601665,0.3124,4295.9,4295.8,0.507]
[1756774602262,0.5087,4295.9,4295.8,0.4432]
[1756774602466,0.7135,4295.9,4295.8,0.4432]
[1756774603167,0.2962,4296.4,4296.3,0.204]
[1756774603466,0.4925,4296.4,4296.3,0.443]
[1756774605067,0.6973,4296.4,4296.3,0.341]
[1756774609768,0.6973,4296.4,4296.3,0.443]
[1756774611772,0.2962,4296.4,4296.3,41.243]
[1756774613870,0.2962,4297.4,4296.8,0.204]
[1756774614079,0.2962,4297.5,4297.4,0.204]
[1756774614275,0.2962,4297.5,4297.4,0.443]
[1756774614276,0.4925,4297.5,4297.4,0.443]
[1756774614766,0.4925,4297.5,4297.4,41.243]
[1756774616870,0.2962,4297.9,4297.4,41.3068]
[1756774617071,0.5197,4298.5,4298.4,0.102]
[1756774617272,0.5197,4298.5,4298.4,0.239]
[1756774617571,0.8159,4298.5,4298.4,0.239]
[1756774618878,0.8159,4298.5,4298.4,0.341]
[1756774619179,0.2962,4298.9,4298.4,3.24513331]
[1756774619676,0.2962,4299.2,4298.4,3.24513331]
[1756774620078,3.2078,4299.3,4298.4,3.24513331]
[1756774620379,0.8159,4299.0,4298.9,0.102]
[1756774620571,0.8159,4299.0,4298.9,0.341]
[1756774621373,0.8159,4299.0,4298.9,0.443]
[1756774621592,0.2962,4299.0,4298.9,0.443]
[1756774622278,0.4925,4299.0,4298.9,0.443]
[1756774624182,0.4011,4298.6,4298.5,40.8]
[1756774624481,0.6973,4298.6,4298.5,41.038]
[1756774629983,3.2078,4299.3,4299.2,0.2034]
[1756774630192,3.2078,4299.9,4299.2,0.4414]
[1756774630383,3.6089,4299.9,4299.8,0.1017]
[1756774630589,3.6089,4299.9,4299.8,0.3397]
[1756774630590,3.9051,4299.9,4299.8,0.3397]
[1756774631288,3.9051,4299.9,4299.8,0.238]
[1756774632892,3.9051,4299.9,4299.8,0.3403]
[1756774633193,3.9051,4299.9,4299.8,0.238]
[1756774633686,3.9051,4299.9,4299.8,0.3403]
[1756774634482,0.6973,4299.9,4299.8,0.3403]
[1756774634687,0.4925,4299.9,4299.8,0.4426]
[1756774634889,0.6958,4299.9,4299.8,0.4426]
[1756774635389,0.6958,4299.9,4299.8,41.2426]
[1756774635995,0.2962,4299.9,4299.8,40.8]
[1756774636294,0.2962,4299.9,4299.8,41.038]
[1756774637089,0.2962,4299.9,4299.8,40.8]
[1756774637289,0.2962,4299.9,4299.8,41.038]
[1756774637490,0.704,4299.9,4299.8,0.238]
[1756774637991,0.704,4299.9,4299.6,40.8]
[1756774638190,0.6996,4299.8,4299.7,0.1023]
[1756774638494,0.6996,4299.8,4299.7,0.3403]
[1756774640091,0.6996,4299.8,4299.7,0.4426]
[1756774641295,3.2078,4300.9,4300.3,0.2046]
[1756774641296,0.2918,4300.9,4300.3,0.2046]
[1756774641498,0.2918,4300.9,4299.6,41.84648]
[1756774641499,0.2918,4300.9,4300.8,3.07063331]
[1756774641800,3.2078,4301.4,4300.8,3.24473331]
[1756774641992,0.2918,4301.3,4300.8,3.30863331]
[1756774642296,0.6996,4301.3,4300.9,40.8]